Cogmind - Beta 11.1 @@@ ROGUE MODE // 2022.11.03 @ 01:20:33 Player: Pogmind Result: Destroyed by G-34 Mercenary with Small Laser Performance ------------- Evolutions (0) 0 Regions Visited (2) 400 Robots Destroyed (36) 180 Value Destroyed (799) 799 Prototype IDs (0) 0 Alien Tech Used (0) 0 Bonus (0) 0 TOTAL SCORE: 1379 Bonus ------- None Cogmind --------- Core Integrity 0/250 Matter 231/300 Energy 164/250 System Corruption 0% Temperature Warm (164) Movement Walking (400) Ox4 Location -10/Mines Parts ------- > --- POWER (1) -------- Ion Engine > --- PROPULSION (2) --- Aluminum Leg Aluminum Leg > --- UTILITY (2) ------ Huge Storage Unit Light Armor Plating > --- WEAPON (2) ------- Beam Cannon Assault Rifle > --- INVENTORY (25) --- Aluminum Leg Aluminum Leg Aluminum Leg Compact Wheel Compact Wheel Compact Wheel Compact Wheel Compact Wheel Compact Wheel Medium Storage Unit Medium Matter Pod (100) Medium Matter Pod (100) Hardened Light Armor Plating Hardened Light Armor Plating Hardened Light Armor Plating Hardened Light Armor Plating EM Pulse Gun Small Laser Beam Cannon Grenade Launcher Grenade Launcher Grenade Launcher Peak State ------------ > --- POWER ------------ Ion Engine > --- PROPULSION ------- Compact Wheel Compact Wheel > --- UTILITY ---------- Huge Storage Unit Light Armor Plating > --- WEAPON ----------- Small Laser Assault Rifle > --- INVENTORY -------- Ion Engine Aluminum Leg Aluminum Leg Aluminum Leg Aluminum Leg Aluminum Leg Compact Wheel Compact Wheel Compact Wheel Compact Wheel Compact Wheel Medium Storage Unit Light Armor Plating Hardened Light Armor Plating Hardened Light Armor Plating Beam Cannon Beam Cannon Grenade Launcher Grenade Launcher [Rating: 9] Favorites ----------- Power Ion Engine Engine Ion Engine Propulsion Compact Wheel Treads Light Treads Leg Aluminum Leg Wheel Compact Wheel Utility Light Armor Plating Device Seismic Detector Storage Medium Storage Unit Protection Light Armor Plating Weapon Assault Rifle Energy Gun Small Laser Energy Cannon Beam Cannon Ballistic Gun Assault Rifle Launcher Grenade Launcher Build | -11 -10 -10 ------- Run | Scr Mat Min Slots Evolved . | . . . Power . | . . . Propulsion . | . . . Utility . | . . . Weapon . | . . . Parts Attached 36 | 7 17 12 Power 4 | 1 2 1 Engine 4 | 1 2 1 Core . | . . . Reactor . | . . . Propulsion 10 | 2 6 2 Treads 3 | 2 1 . Leg 4 | . 2 2 Wheel 3 | . 3 . Hover . | . . . Flight . | . . . Utility 8 | 2 6 . Device 3 | 1 2 . Storage 3 | 1 2 . Processor . | . . . Hackware . | . . . Protection 2 | . 2 . Artifact . | . . . Weapon 14 | 2 3 9 Energy Gun 3 | 1 2 . Energy Cannon 4 | . . 4 Ballistic Gun 3 | 1 1 1 Ballistic Cannon . | . . . Launcher 4 | . . 4 Special Weapon . | . . . Impact Weapon . | . . . Slashing Weapon . | . . . Piercing Weapon . | . . . Special Melee Weapon . | . . . Unidentified Prototypes . | . . . Parts Lost 10 | . 8 2 Power 3 | . 2 1 Propulsion 3 | . 2 1 Utility 1 | . 1 . Weapon 3 | . 3 . Highest Loss Streak 6 | . 6 2 To Critical Strikes . | . . . Average Slot Usage (%) 96 | . 95 99 Engine 12 | . 11 13 Treads 5 | . 7 . Leg 6 | . 8 . Wheel 15 | . 10 27 Device 2 | . 3 . Storage 14 | . 14 14 Protection 11 | . 10 14 Energy Gun 8 | . 11 . Energy Cannon 5 | . . 20 Ballistic Gun 11 | . 15 . Launcher 2 | . . 7 Naked Turns . | . . . Heaviest Build 94 | 11 91 94 Greatest Support 40 | 40 40 32 Greatest Overweight (x) 5 | . 5 2 Average Overweight (x) 1 | . 1 2 Largest Inventory Capacity 25 | 8 25 25 Average Capacity 16 | 7 12 25 Most Carried 25 | 4 25 24 Average Carried 14 | 3 10 23 Final Capacity 25 | 8 25 25 Final Carried 24 | 4 24 22 Class Distribution -------------------- 81% | Mutant 18% | Scavenger-Mutant Dominant Class ---------------- Mutant | -10/Materials Mutant | -10/Mines Resources | -11 -10 -10 ----------- Run | Scr Mat Min Matter Collected 944 | 278 366 300 Remotely . | . . . Salvage Created 1154 | 108 872 174 Parts 68 | 3 49 16 Haulers Intercepted 2 | . 2 . Recyclers Shooed 4 | . 4 . Parts Field Recycled . | . . . Retrieved Matter . | . . . Parts Self-Destructed . | . . . Prevented . | . . . Kills | -11 -10 -10 ------- Run | Scr Mat Min Combat Hostiles Destroyed 27 | . 18 9 Guns 18 | . 17 1 Cannons 2 | . . 2 AOE 7 | . 1 6 Classes Destroyed 8 | 2 4 2 Worker 1 | . . 1 Tunneler 1 | 1 . . Hauler 2 | . 2 . Recycler 3 | 1 2 . Watcher 3 | . 3 . Swarmer 8 | . 6 2 Grunt 17 | . 12 5 Assembled 1 | . . 1 Best Kill Streak 6 | 2 6 2 Combat Bots Only 6 | . 6 2 Max Kills in Single Turn 2 | 1 1 2 Gunslinging . | . . . Exploded 2 | . 1 2 Melee . | . . . Uniques/NPCs Destroyed 1 | . . 1 YI-UF0 (-10/Mines) Combat | -11 -10 -10 -------- Run | Scr Mat Min Damage Taken 1524 | . 1083 441 Core 250 | . 213 37 Absorbed by Shields . | . . . Core Remaining (%) 100 | 100 . . Volleys Fired 142 | 8 104 30 Largest 2 | 2 2 2 Hottest 120 | 60 60 120 Shots Fired 232 | 16 170 46 Gun 199 | 16 170 13 Cannon 27 | . . 27 Launcher 6 | . . 6 Special . | . . . Kinetic 135 | 8 114 13 Thermal 76 | 8 41 27 Explosive 6 | . . 6 Electromagnetic 15 | . 15 . Robot Hit Streak 13 | 5 11 13 Robot Miss Streak 5 | 2 3 5 Penetration Max . | . . . Secondary Targets 3 | . 3 . Max Gunslinging Chain 1 | . 1 . Shots Hit Robots 152 | 10 115 27 Core Hits 67 | 4 45 18 Critical Kills 1 | . 1 . Critical Parts Destroyed . | . . . Critical Strikes 1 | . 1 . Destroy 1 | . 1 . Melee Attacks . | . . . Impact . | . . . Slashing . | . . . Piercing . | . . . Sneak Attacks . | . . . Combat Hostiles . | . . . Follow-up Attacks . | . . . Damage Inflicted 2230 | 98 1304 828 Guns 1487 | 98 1248 141 Cannons 300 | . . 300 Explosions 421 | . 34 387 Melee . | . . . Ramming 22 | . 22 . Kinetic 943 | 33 769 141 Thermal 731 | 65 366 300 Explosive 387 | . . 387 Electromagnetic 147 | . 147 . Impact . | . . . Slashing . | . . . Piercing . | . . . Highest Corruption . | . . . Average Corruption . | . . . Corruption Purged . | . . . Corruption Blocked . | . . . Overload Shots . | . . . Overflow Damage 21 | . 15 6 Projectiles . | . . . Explosions 21 | . 15 6 Melee . | . . . Knockbacks . | . . . Impact . | . . . Kinetic . | . . . Secondary . | . . . Self-Inflicted Damage 60 | . 27 33 Shots 2 | . 1 1 Rammed 11 | 1 10 . Targets Rammed 11 | 1 10 . Kicked . | . . . Crushed . | . . . Highest Temperature 232 | 40 218 232 Average Temperature 74 | 20 54 114 Received Heat Transfer 771 | . 507 264 Effects 3 | . 3 . Interference 3 | . 3 . Siege Activations . | . . . Robots Corrupted . | . . . Combat Hostiles . | . . . Parts Fried . | . . . Impact Corruptions . | . . . Robots Melted . | . . . Combat Hostiles . | . . . Parts Melted 1 | . . 1 Heat Transferred 1579 | 150 800 629 Parts Sabotaged . | . . . Parts Stolen . | . . . Parts Stripped . | . . . Power Chain Reactions 1 | . 1 . Missiles Intercepted . | . . . Alert | -11 -10 -10 ------- Run | Scr Mat Min Peak Influence 346 | 10 346 225 Initial 56 | . 6 56 Average 105 | 2 111 100 Maximum Alert Level 1 | . 1 1 Low Security (%) 86 | 100 80 96 Level 1 13 | . 19 3 Level 2 . | . . . Level 3 . | . . . Level 4 . | . . . Level 5 . | . . . High Security . | . . . Max Security . | . . . Squads Dispatched 6 | . 6 . Investigation 4 | . 4 . Extermination . | . . . Reinforcement 2 | . 2 . Assault . | . . . Garrison . | . . . Intercept . | . . . Searches Triggered . | . . . Construction Impeded . | . . . Haulers Reinforced . | . . . Active Scanning Responses . | . . . Cargo Convoy Interrupts . | . . . Stealth | -11 -10 -10 --------- Run | Scr Mat Min Distress Signals 1 | . 1 . Communications Jammed . | . . . Distress Signals . | . . . Times Spotted 43 | . 32 11 Peak Tracking Total 6 | . 6 3 Tactical Retreats 3 | . 3 . Traps | -11 -10 -10 ------- Run | Scr Mat Min Traps Triggered 2 | . 2 . Indirectly . | . . . Trap Hack Attempts . | . . . Triggered . | . . . Disarmed . | . . . Reprogrammed 6 | . 6 . Reused 4 | . 4 . Traps Extracted . | . . . Installed . | . . . Triggered 4 | . 4 . Machines | -11 -10 -10 ---------- Run | Scr Mat Min Machines Disabled 1 | . 1 . Max in Single Turn 1 | . 1 . Machines Sabotaged . | . . . Garrisons Compromised . | . . . Overloaded Fab Kills . | . . . Hacking | -11 -10 -10 --------- Run | Scr Mat Min Machines Accessed 7 | . 7 . Terminals 5 | . 5 . Fabricators . | . . . Repair Stations . | . . . Recycling Units 2 | . 2 . Scanalyzers . | . . . Garrison Access . | . . . Total Hacks 20 | . 20 . Successful 10 | . 10 . Failed 9 | . 9 . Catastrophic . | . . . Database Lockouts 1 | . 1 . Manual 16 | . 16 . Terminals 18 | . 18 . Fabricators . | . . . Repair Stations . | . . . Recycling Units 2 | . 2 . Scanalyzers . | . . . Garrison Access . | . . . Terminal Hacks 5 | . 5 . Robot Analysis 2 | . 2 . Locate Traps 1 | . 1 . Reprogram Traps 1 | . 1 . Hauler Manifests 1 | . 1 . Fabricator Hacks . | . . . Repair Station Hacks . | . . . Recycling Unit Hacks . | . . . Scanalyzer . | . . . Garrison Access Hacks . | . . . Unauthorized Hacks 5 | . 5 . Terminals 3 | . 3 . Botnet 2 | . 2 . Operators 1 | . 1 . Fabricators . | . . . Repair Stations . | . . . Recycling Units 2 | . 2 . Tunnel 2 | . 2 . Scanalyzers . | . . . Garrison Access . | . . . Data Cores Recovered . | . . . Used . | . . . Hacking Detections 5 | . 5 . Full Trace Events . | . . . Feedback Events . | . . . Feedback Blocked . | . . . Robot Schematics Acquired . | . . . Robots Built . | . . . Authchips . | . . . Time . | . . . Total Robot Build Rating . | . . . Part Schematics Acquired . | . . . Parts Built . | . . . Authchips . | . . . Time . | . . . Total Part Build Rating . | . . . Parts Repaired . | . . . Time . | . . . Parts Recycled . | . . . Recycled Matter . | . . . Retrieved Matter . | . . . Retrieved Components . | . . . Parts Scanalyzed . | . . . Part Schematics Acquired . | . . . Parts Damaged . | . . . Bothacking | -11 -10 -10 ------------ Run | Scr Mat Min Used RIF Installer . | . . . Robots Hacked . | . . . Non-combat . | . . . Combat . | . . . Robot Hacks Applied . | . . . Relay Couplers Released . | . . . Fabnet Peak Effective % . | . . . Robots Rewired . | . . . Allies Hacked . | . . . Hacks Repelled . | . . . Allies | -11 -10 -10 -------- Run | Scr Mat Min Total Allies . | . . . Largest Group . | . . . Highest-Rated Group . | . . . Highest-Rated Ally . | . . . Total Orders . | . . . Ally Attacks . | . . . Total Damage . | . . . Kills . | . . . Allies Corrupted . | . . . Allies Melted . | . . . Intel | -11 -10 -10 ------- Run | Scr Mat Min Robot Analysis Total 2 | . 2 . Derelict Logs Recovered 1 | . . 1 Drone Launches . | . . . Drone Recoveries . | . . . Exploration | -11 -10 -10 ------------- Run | Scr Mat Min Turns Passed 3364 | 102 2291 971 Spaces Moved 1553 | 43 1017 493 Core 5 | 5 . . Treads 467 | 38 429 . Legs 320 | . 320 . Wheels 761 | . 268 493 Hover . | . . . Flight . | . . . Fastest Speed 50 | 50 80 130 Average Speed 164 | 147 182 130 Slowest Speed 400 | 160 400 130 Overloaded Moves . | . . . Propulsion Burnouts . | . . . Robots Hopped . | . . . Cave-ins Triggered . | . . . Exploration Rate (%) 64 | 4 99 91 Regions Visited 2 Branch Regions 1 Pre-discovered Areas 2 | . 2 . Known Exits Taken . | . . . Unknown Exits Taken 2 | 1 1 . Scrap Searched 1 | . . 1 Spaces Dug . | . . . Terrain Destroyed 34 | . 5 29 Melee . | . . . Projectile . | . . . AOE 34 | . 5 29 Terrain Rammed . | . . . Walls Destroyed . | . . . Machines Disabled . | . . . Actions | -11 -10 -10 --------- Run | Scr Mat Min Total 2122 | 63 1286 773 Wait 339 | 1 100 238 Move 1552 | 43 1016 493 Hop . | . . . Pick Up 31 | 4 27 . Fast Attach 16 | 7 9 . Attach 6 | . 4 2 Detach 3 | . 3 . Swap 14 | . 4 10 Drop 9 | . 9 . Fire 142 | 8 104 30 Melee . | . . . Ram . | . . . Kick . | . . . Crush 10 | . 10 . Escape Stasis . | . . . Rewire . | . . . Trap . | . . . Miscellaneous . | . . . Route ------- -11/Scrapyard -10/Materials (discovered 4 exits: [*Mat x3] / [*Min]) -10/Mines (discovered 1 exit: [*Mat]) History --------- Turn | Location | Event 14 | -11/Scrapyard | Discovered new exit (range 15) 103 | -11/Scrapyard | Entered Materials 309 | -10/Materials | Core integrity fell below 50% 332 | -10/Materials | Build established: Mutant 339 | -10/Materials | Lost 6 parts (2p2n2w) 446 | -10/Materials | Central database locked down 898 | -10/Materials | Discovered new exit (range 15) 987 | -10/Materials | Build established: Scavenger-Mutant 1196 | -10/Materials | Discovered new exit (range 15) 1395 | -10/Materials | Discovered new exit (range 14) 1430 | -10/Materials | Core integrity fell below 20% 1550 | -10/Materials | Discovered new exit (range 8) 1603 | -10/Materials | Build established: Mutant 2394 | -10/Materials | Entered Mines 2395 | -10/Mines | Assembled infested the area 2657 | -10/Mines | Destroyed YI-UF0 3038 | -10/Mines | Learned Materials emergency access door positions 3290 | -10/Mines | Discovered new exit (range 12) 3365 | -10/Mines | Destroyed by G-34 Mercenary with Small Laser Last Messages --------------- 02867_ U-05 Engineer builds a Wall. 02954_ Acquired 1 matter. 02980_ K-01 Serf destroyed. 02983_ Acquired 1 matter. 03008_ Searching scrap... 03008_ Found Com. Wheel. 03008_ Found 35 Matter. 03038_ Acquired derelict log, extracted data. Data stored: Materials emergency access points. 03084_ as-63709 destroyed. 03114_ A derelict is hurriedly installing traps. 03262_ U-05 Engineer lays Concrete. 03263_ U-05 Engineer builds a Wall. 03276_ U-05 Engineer lays Concrete. 03290_ EXIT=FOUND 03341_ Critical hit (Burn: +37). 03349_ Ion Engine destroyed. 03351_ Com. Wheel destroyed. 03360_ Lgt. Nuclear Core melted. 03360_ G-47 Trooper destroyed. Map ----- +----------------------------------------------------+ | ????# ## # ## # ###? | | ????## # ## | | ?????# ####### ## # | | ?????## ##?????##### | | ??????######?????????## ## | | ???????????????####### # #### | | ???????????????# ? # # ####?## | | ???????????????# ##### ## ???# | | ?????????????????# ## ????# | | ?????????????????# #### ????# | | ?????????????????# ####### ##???# | | ??#######????????# #????? # ##### | | ??# #?????#### #??????# ## | | ??# < ####### #??????# ### | | ??# ####??????# ### | | ??# #?????????# ## | | ??# #########?????????# | | ??# #?????????????????# # # | | ??# ####?????????????????######### # | | ??# #????????????????????###????## # | | ??# #???????????????????## ##### | | ??# #????############???# | | ??# #????# ????# | | ??# ###### ????# #### | | ??# """ """ ##??## | | ??# @""" """ ##????# | | ??#########g%""" """ ########??????? | | ??????????# [ #?????????????? | | ??????????############??????????????? | | ????????????????????????????????????? | | ????????????????????????????????????? | | | | | | | | | | | | | | | | | | | | | | | | | | | | | | | | | | | | | | | +----------------------------------------------------+ Best States ------------- Heat Dissipation 35 Energy Generation 10 Energy Capacity 250 Matter Stores 300 Matter Capacity 300 Sight Range 16 Terrain Scan Density 10 Armor Coverage 150 Evasion (%) 44 Recoil Reduction 2 Item Schematics ----------------- None Robot Schematics ------------------ None Fabricated ------------ Nothing Alien Tech Used ----------------- None Achievements -------------- None Challenges ------------ None Game ------ Seed HardcellSlugAmplifier Manual? 0 Play Time 00:21:00 Cumulative 566.1 hours Start 2022.11.03 @ 01:03:50 End 2022.11.03 @ 01:20:33 Sessions 1 Manual Loads 0 Difficulty Rogue Special Mode None Game No. 61 Rogue 51 Adventurer 5 Explorer 5 Win Type - Total 23 Types 6/6/4/0/3/1/2/0/1 Lore% 88 Gallery% 93 Achievement% 83 Wizard Run 0 Options --------- ASCII 0 Keyboard 1 Movement Arrows Keybinds 0 Fullscreen 2 Font 18/SmallcapsGlow Map View 76x50 Tactical HUD 1 Map Filters NONE Filters NONE Steam 1 RUN: 014c75f3-f4c8-4e62-a397-0c13a5afc8c1